Cogmind - Beta 10.1 @@@ ROGUE MODE // 2020.10.07 @ 20:04:59 Player: BOTHUNTER Result: Destroyed by as-45953 with Assembled Blade Performance ------------- Evolutions (0) 0 Regions Visited (4) 800 Robots Destroyed (20) 100 Value Destroyed (441) 441 Prototype IDs (3) 60 Alien Tech Used (0) 0 Bonus (300) 300 TOTAL SCORE: 1701 Bonus ------- Aligned with FarCom 300 Cogmind --------- Core Integrity 0/250 Matter 279/300 Energy 160/160 System Corruption 0% Temperature Cool (10) Movement Walking (130) Ox1 Location -9/Mines Parts ------- > --- POWER (1) -------- Light Nuclear Core > --- PROPULSION (2) --- Potential Leg > --- UTILITY (2) ------ Large Storage Unit Large Storage Unit > --- WEAPON (2) ------- Bore Cannon Plasma Cutter > --- INVENTORY (16) --- Nuclear Core Medium Storage Unit Medium Battery (200) Medium Battery (200) Experimental Sensor Array Terrain Scan Processor Targeting Computer Targeting Computer Targeting Computer Core Shielding Propulsion Shielding Weapon Shielding Light Armor Plating Mining Laser Peak State ------------ > --- POWER ------------ Light Nuclear Core > --- PROPULSION ------- Potential Leg Potential Leg > --- UTILITY ---------- Medium Storage Unit Supersonic Drone Bay > --- WEAPON ----------- Assault Rifle Light Assault Rifle > --- INVENTORY -------- Nuclear Core Experimental Sensor Array Targeting Computer Targeting Computer Propulsion Shielding Weapon Shielding Light Armor Plating Mining Laser [Rating: 35] Favorites ----------- Power Light Ion Engine Engine Light Ion Engine Power Core Light Nuclear Core Propulsion Aluminum Leg Leg Aluminum Leg Utility Medium Storage Unit Device Sensor Array Storage Medium Storage Unit Protection Light Armor Plating Weapon Assault Rifle Ballistic Gun Assault Rifle Ballistic Cannon Bore Cannon Special Weapon Plasma Cutter Build | -11 -10 -10 -10 -9 ------- Run | Scr Mat Min Exi Min Slots Evolved . | . . . . . Power . | . . . . . Propulsion . | . . . . . Utility . | . . . . . Weapon . | . . . . . Parts Attached 27 | 6 6 6 7 2 Power 2 | 1 . 1 . . Engine 1 | 1 . . . . Core 1 | . . 1 . . Reactor . | . . . . . Propulsion 5 | 2 1 . 2 . Treads . | . . . . . Leg 5 | 2 1 . 2 . Wheel . | . . . . . Hover . | . . . . . Flight . | . . . . . Utility 14 | 1 5 3 5 . Device 3 | . 1 . 2 . Storage 7 | 1 2 1 3 . Processor . | . . . . . Hackware . | . . . . . Protection 4 | . 2 2 . . Artifact . | . . . . . Weapon 6 | 2 . 2 . 2 Energy Gun . | . . . . . Energy Cannon . | . . . . . Ballistic Gun 4 | 2 . 2 . . Ballistic Cannon 1 | . . . . 1 Launcher . | . . . . . Special Weapon 1 | . . . . 1 Impact Weapon . | . . . . . Slashing Weapon . | . . . . . Piercing Weapon . | . . . . . Special Melee Weapon . | . . . . . Unidentified Prototypes 3 | . . . 3 . Parts Lost 3 | . . 1 . 2 Power 1 | . . 1 . . Propulsion . | . . . . . Utility . | . . . . . Weapon 2 | . . . . 2 Highest Loss Streak 1 | . . 1 . 1 Average Slot Usage (%) 97 | . 97 99 99 90 Engine 7 | . 14 9 . . Core 6 | . . 4 14 14 Leg 27 | . 27 28 28 27 Storage 22 | . 14 24 27 28 Protection 4 | . 9 3 . . Ballistic Gun 25 | . 28 28 28 14 Naked Turns . | . . . . . Heaviest Build 47 | 11 42 24 40 47 Greatest Support 60 | 20 20 20 60 60 Greatest Overweight (x) 2 | . 2 1 1 1 Average Overweight (x) . | . . . . . Largest Inventory Capacity 16 | 6 12 12 16 16 Average Capacity 10 | 5 7 10 12 16 Most Carried 14 | 1 8 9 13 14 Average Carried 8 | . 4 8 10 13 Final Capacity 16 | 6 8 12 16 16 Final Carried 14 | 1 8 9 13 14 Class Distribution -------------------- 100% | Mutant Dominant Class ---------------- Mutant | -10/Materials Mutant | -10/Mines Mutant | -10/Exiles Mutant | -9/Mines Resources | -11 -10 -10 -10 -9 ----------- Run | Scr Mat Min Exi Min Matter Collected 686 | 246 154 152 . 134 Remotely . | . . . . . Salvage Created 556 | . 341 92 . 123 Parts 39 | . 25 9 . 5 Haulers Intercepted . | . . . . . Recyclers Shooed 1 | . 1 . . . Parts Field Recycled . | . . . . . Retrieved Matter . | . . . . . Parts Self-Destructed . | . . . . . Prevented . | . . . . . Kills | -11 -10 -10 -10 -9 ------- Run | Scr Mat Min Exi Min Combat Hostiles Destroyed 18 | . 11 4 . 3 Guns 17 | . 11 4 . 2 Cannons 1 | . . . . 1 Classes Destroyed 6 | . 4 . . 2 Worker 1 | . 1 . . . Watcher 1 | . 1 . . . Swarmer 8 | . 5 3 . . Grunt 8 | . 6 1 . 1 Brawler 1 | . . . . 1 Assembled 1 | . . . . 1 Best Kill Streak 10 | . 10 3 . 2 Combat Bots Only 8 | . 8 3 . 2 Max Kills in Single Turn 2 | . 1 2 . 1 Gunslinging . | . . . . . Exploded . | . . . . . Melee . | . . . . . Uniques/NPCs Destroyed . | . . . . . Combat | -11 -10 -10 -10 -9 -------- Run | Scr Mat Min Exi Min Damage Taken 990 | . 252 206 . 532 Core 255 | . 42 57 . 156 Absorbed by Shields . | . . . . . Core Remaining (%) 100 | 100 . . . . Volleys Fired 54 | . 25 13 . 16 Largest 2 | . 2 2 . 2 Hottest 77 | . 40 40 . 77 Shots Fired 97 | . 50 26 . 21 Gun 91 | . 50 26 . 15 Cannon 3 | . . . . 3 Launcher . | . . . . . Special 3 | . . . . 3 Kinetic 94 | . 50 26 . 18 Thermal 3 | . . . . 3 Explosive . | . . . . . Electromagnetic . | . . . . . Robot Hit Streak 10 | . 7 8 . 10 Robot Miss Streak 4 | . 4 3 . 4 Penetration Max 1 | . . . . 1 Secondary Targets 3 | . 3 . . . Max Gunslinging Chain 1 | . 1 . . . Shots Hit Robots 59 | . 28 20 . 11 Core Hits 28 | . 16 7 . 5 Critical Hits 4 | . 3 . . 1 Critical Kills 4 | . 3 . . 1 Critical Parts Destroyed . | . . . . . Melee Attacks . | . . . . . Impact . | . . . . . Slashing . | . . . . . Piercing . | . . . . . Sneak Attacks . | . . . . . Combat Hostiles . | . . . . . Follow-up Attacks . | . . . . . Damage Inflicted 761 | . 336 241 . 184 Guns 670 | . 336 241 . 93 Cannons 83 | . . . . 83 Explosions . | . . . . . Melee . | . . . . . Ramming 8 | . . . . 8 Kinetic 753 | . 336 241 . 176 Thermal . | . . . . . Explosive . | . . . . . Electromagnetic . | . . . . . Impact . | . . . . . Slashing . | . . . . . Piercing . | . . . . . Highest Corruption . | . . . . . Average Corruption . | . . . . . Corruption Purged . | . . . . . Overload Shots . | . . . . . Overflow Damage 17 | . . . . 17 Projectiles 17 | . . . . 17 Explosions . | . . . . . Melee . | . . . . . Knockbacks 1 | . . . . 1 Impact . | . . . . . Kinetic 1 | . . . . 1 Secondary . | . . . . . Self-Inflicted Damage 4 | . . . . 4 Shots . | . . . . . Rammed 1 | . . . . 1 Targets Rammed 1 | . . . . 1 Kicked . | . . . . . Crushed . | . . . . . Highest Temperature 22 | . 12 9 . 22 Average Temperature 6 | . 5 7 . 6 Received Heat Transfer 379 | . 87 96 . 196 Siege Activations . | . . . . . Robots Corrupted . | . . . . . Combat Hostiles . | . . . . . Parts Fried . | . . . . . Impact Corruptions 1 | . . . . 1 Robots Melted . | . . . . . Combat Hostiles . | . . . . . Parts Melted . | . . . . . Heat Transferred . | . . . . . Parts Sabotaged . | . . . . . Parts Stolen . | . . . . . Parts Stripped . | . . . . . Power Chain Reactions . | . . . . . Missiles Intercepted . | . . . . . Alert | -11 -10 -10 -10 -9 ------- Run | Scr Mat Min Exi Min Peak Influence 355 | . 355 165 . 55 Initial 60 | . . 60 . . Average 144 | . 214 149 . 35 Maximum Alert Level 1 | . 1 . . . Low Security (%) 79 | 100 47 100 . 100 Level 1 20 | . 52 . . . Level 2 . | . . . . . Level 3 . | . . . . . Level 4 . | . . . . . Level 5 . | . . . . . High Security . | . . . . . Max Security . | . . . . . Squads Dispatched 3 | . 3 . . . Investigation 3 | . 3 . . . Extermination . | . . . . . Reinforcement . | . . . . . Assault . | . . . . . Garrison . | . . . . . Intercept . | . . . . . Construction Impeded . | . . . . . Haulers Reinforced . | . . . . . Stealth | -11 -10 -10 -10 -9 --------- Run | Scr Mat Min Exi Min Distress Signals 1 | . 1 . . . Communications Jammed . | . . . . . Distress Signals . | . . . . . Times Spotted 44 | . 15 5 . 24 Peak Tracking Total 19 | . 5 3 . 19 Tactical Retreats 3 | . . . . 3 Traps | -11 -10 -10 -10 -9 ------- Run | Scr Mat Min Exi Min Traps Triggered . | . . . . . Indirectly . | . . . . . Trap Hack Attempts . | . . . . . Triggered . | . . . . . Disarmed . | . . . . . Reprogrammed . | . . . . . Reused . | . . . . . Traps Extracted . | . . . . . Installed . | . . . . . Triggered . | . . . . . Machines | -11 -10 -10 -10 -9 ---------- Run | Scr Mat Min Exi Min Machines Disabled 1 | . 1 . . . Max in Single Turn 1 | . 1 . . . Machines Sabotaged . | . . . . . Garrisons Compromised . | . . . . . Overloaded Fab Kills . | . . . . . Fab Network Shutdowns . | . . . . . Hacking | -11 -10 -10 -10 -9 --------- Run | Scr Mat Min Exi Min Machines Accessed 5 | . 5 . . . Terminals 3 | . 3 . . . Fabricators . | . . . . . Repair Stations 1 | . 1 . . . Recycling Units 1 | . 1 . . . Scanalyzers . | . . . . . Garrison Access . | . . . . . Total Hacks 14 | . 14 . . . Successful 7 | . 7 . . . Failed 7 | . 7 . . . Catastrophic 1 | . 1 . . . Database Lockouts . | . . . . . Manual 5 | . 4 . 1 . Terminals 8 | . 8 . . . Fabricators . | . . . . . Repair Stations 3 | . 3 . . . Recycling Units 3 | . 3 . . . Scanalyzers . | . . . . . Garrison Access . | . . . . . Terminal Hacks 2 | . 2 . . . Robot Analysis 1 | . 1 . . . Branch Access Points 1 | . 1 . . . Fabricator Hacks . | . . . . . Repair Station Hacks 2 | . 2 . . . Scan Component 1 | . 1 . . . Repair 1 | . 1 . . . Recycling Unit Hacks 1 | . 1 . . . Retrieve Components 1 | . 1 . . . Scanalyzer . | . . . . . Garrison Access Hacks . | . . . . . Unauthorized Hacks 2 | . 2 . . . Terminals 1 | . 1 . . . Botnet 1 | . 1 . . . Fabricators . | . . . . . Repair Stations . | . . . . . Recycling Units 1 | . 1 . . . Tunnel 1 | . 1 . . . Scanalyzers . | . . . . . Garrison Access . | . . . . . Data Cores Recovered . | . . . . . Used . | . . . . . Hacking Detections 3 | . 3 . . . Full Trace Events 3 | . 3 . . . Feedback Events . | . . . . . Feedback Blocked . | . . . . . Robot Schematics Acquired . | . . . . . Robots Built . | . . . . . Matter . | . . . . . Time . | . . . . . Total Robot Build Rating . | . . . . . Part Schematics Acquired . | . . . . . Parts Built . | . . . . . Matter . | . . . . . Time . | . . . . . Total Part Build Rating . | . . . . . Parts Repaired 1 | . 1 . . . Time 26 | . 26 . . . Parts Recycled . | . . . . . Recycled Matter . | . . . . . Retrieved Matter . | . . . . . Retrieved Components . | . . . . . Parts Scanalyzed . | . . . . . Part Schematics Acquired . | . . . . . Parts Damaged . | . . . . . Bothacking | -11 -10 -10 -10 -9 ------------ Run | Scr Mat Min Exi Min Used RIF Installer . | . . . . . Robots Hacked . | . . . . . Non-combat . | . . . . . Combat . | . . . . . Robot Hacks Applied . | . . . . . Relay Couplers Released . | . . . . . Robots Rewired . | . . . . . Allies Hacked . | . . . . . Hacks Repelled . | . . . . . Allies | -11 -10 -10 -10 -9 -------- Run | Scr Mat Min Exi Min Total Allies . | . . . . . Largest Group . | . . . . . Highest-Rated Group . | . . . . . Highest-Rated Ally . | . . . . . Total Orders . | . . . . . Ally Attacks . | . . . . . Total Damage . | . . . . . Kills . | . . . . . Allies Corrupted . | . . . . . Allies Melted . | . . . . . Intel | -11 -10 -10 -10 -9 ------- Run | Scr Mat Min Exi Min Robot Analysis Total 1 | . 1 . . . Derelict Logs Recovered . | . . . . . Drone Launches . | . . . . . Drone Recoveries . | . . . . . Exploration | -11 -10 -10 -10 -9 ------------- Run | Scr Mat Min Exi Min Turns Passed 1490 | 63 460 400 331 236 Spaces Moved 1065 | 56 271 227 264 247 Core 19 | 19 . . . . Treads . | . . . . . Legs 1046 | 37 271 227 264 247 Wheels . | . . . . . Hover . | . . . . . Flight . | . . . . . Fastest Speed 45 | 50 120 120 90 45 Average Speed 111 | 96 122 138 115 72 Slowest Speed 180 | 120 180 150 150 130 Overloaded Moves 97 | . . . . 97 Propulsion Burnouts . | . . . . . Robots Hopped . | . . . . . Cave-ins Triggered . | . . . . . Exploration Rate (%) 46 | 4 50 48 66 62 Regions Visited 4 Branch Regions 3 Pre-discovered Areas 1 | . 1 . . . Known Exits Taken 1 | . 1 . . . Unknown Exits Taken 3 | 1 . 1 1 . Scrap Searched 3 | . . 2 . 1 Spaces Dug . | . . . . . Terrain Destroyed 1 | . . . . 1 Melee . | . . . . . Projectile 1 | . . . . 1 AOE . | . . . . . Terrain Rammed . | . . . . . Walls Destroyed . | . . . . . Machines Disabled . | . . . . . Actions | -11 -10 -10 -10 -9 --------- Run | Scr Mat Min Exi Min Total 1268 | 62 348 288 289 281 Wait 82 | . 30 38 . 14 Move 1061 | 55 270 226 263 247 Hop . | . . . . . Pick Up 27 | 1 12 2 11 1 Fast Attach 19 | 6 4 1 6 2 Attach 2 | . 1 1 . . Detach . | . . . . . Swap 6 | . 1 4 1 . Drop 16 | . 5 3 8 . Fire 54 | . 25 13 . 16 Melee . | . . . . . Ram . | . . . . . Kick 1 | . . . . 1 Crush . | . . . . . Escape Stasis . | . . . . . Rewire . | . . . . . Trap . | . . . . . Miscellaneous . | . . . . . Route ------- -11/Scrapyard -10/Materials (discovered 2 exits: *Min x2) -10/Mines -10/Exiles -9/Mines History --------- Turn | Location | Event 3 | -11/Scrapyard | Discovered new exit (range 14) 64 | -11/Scrapyard | Entered Materials 110 | -10/Materials | Identified exit to Mines 300 | -10/Materials | Destroyed 8 combat bots 316 | -10/Materials | Build established: Mutant 421 | -10/Materials | Repaired Lgt. Armor Plating 524 | -10/Materials | Entered Mines 634 | -10/Mines | Found a damaged Exp. Sensor Array with a note attached 639 | -10/Mines | Found Prototype Device 916 | -10/Mines | Deemed a non-threat by the Exiles lab entrance 918 | -10/Mines | Discovered new exit (range 5) 924 | -10/Mines | Entered Exiles 966 | -10/Exiles | Met 8R-AWN 991 | -10/Exiles | Met EX-HEX 1030 | -10/Exiles | Met EX-BIN 1051 | -10/Exiles | Aligned with FarCom system 1053 | -10/Exiles | Given EX-Vault access code 1087 | -10/Exiles | Opened EX-Vault 1096 | -10/Exiles | Found Prototype Leg 1096 | -10/Exiles | Identified Potential Leg 1099 | -10/Exiles | Found Potential Leg 1103 | -10/Exiles | Found Prototype Device 1103 | -10/Exiles | Identified Supersonic Drone Bay 1107 | -10/Exiles | Found Prototype Device 1107 | -10/Exiles | Identified Cloak of Protection 1139 | -10/Exiles | Warned to stay clear of 0b10 Research branches 1163 | -10/Exiles | Met EX-DEC 1247 | -10/Exiles | Discovered new exit (range 10) 1255 | -10/Exiles | Left Exiles lab with Potential Leg 1255 | -10/Exiles | Entered Mines 1330 | -9/Mines | Core integrity fell below 50% 1402 | -9/Mines | Assembled infested the area 1407 | -9/Mines | Assisted by a Guerilla fighting off Assembled 1436 | -9/Mines | Core integrity fell below 20% 1491 | -9/Mines | Destroyed by as-45953 with Assembled Blade Last Messages --------------- 01446_ Acquired Terrain Scan Processor. 01447_ Acquired 16 matter. 01465_ Searching scrap... 01465_ Found Sml. Matter Pod. 01465_ Found Trap Extractor. 01465_ Found Plasma Cutter. 01465_ Found 39 Matter. 01466_ Acquired Plasma Cutter. 01467_ as-01078 sneak attacks. 01467_ K-01 Serf destroyed. 01468_ Acquired 10 matter. 01478_ as-31990 knocked back. 01481_ Potential Leg severed. 01484_ HV Slug penetrates as-88057. 01484_ as-88057 suffers critical hit. 01484_ as-88057 destroyed. 01484_ Destroyed Asb. F-torch. 01484_ Destroyed Asb. Blade. 01484_ as-31990 system corrupted by crushing effect. 01487_ Knocked back. Map ----- +----------------------------------------------------+ | | | | | | | | | | | | | | | | | | | | | ?????????????????????????????????? | | ?????????????????????????????????? | | ?????????????????????????????????? | | ?????????????????????????????????? | | ?????????????????????????????????? | | ?????????????????????????????????? | | ?????????????????????????????????? | | ?????????????????????????????????? | | ?????????????????????????????????? | | ?????????????????????????????????? | | ??????########???????????????????? | | ??????# #???????????????????? | | ??????# !!! ##??????????????????? | | ??????# ! ! #??????###?????????? | | ??????# ! #????## ##????????? | | ??????# @!! #????# ?????????? | | ??????# aa #???## ?#####???? | | ??????###aa####??## ??? #???? | | ????????#a##?????# ???? ???? | | ????????#a#??????# #???? ????# | | ????????#a#?????## ##???# ???## | | ????????# #?????# ##??# #???# | | ????????#a#?????# !%=#??# #??## | | ????????# #????## #### #### | | ????????# #??### """ | | ????????# #### """ | | ????????# ! """ ##### # | | ????????# %! #???# ## | | ????????###### ##???## ### | | ?????????????# ##?????####?# | | ?????????????# #???????????# | | ?????????????## #??????????# | | ??????????????# #?????????? | | ??????????????# #????????? | | ??????????????## ???????? | | ???????????????#### ??????? | | ??????????????????## ## ??????? | | ????????????????????# ##????????? | | ?????????????????????###?????????? | | ?????????????????????????????????? | +----------------------------------------------------+ Best States ------------- Heat Dissipation 25 Energy Generation 14 Energy Capacity 160 Matter Stores 300 Matter Capacity 300 Sight Range 16 Robot Scan Range 10 Terrain Scan Density 10 Armor Coverage 150 Weapon Shielding 33 Evasion (%) 51 Item Schematics ----------------- None Robot Schematics ------------------ None Fabricated ------------ Nothing Alien Tech Used ----------------- None Achievements -------------- None Challenges ------------ None Game ------ Seed LinkedSuspensionProtection Manual? 0 Play Time 00:19:06 Cumulative 115.7 hours Start 2020.10.07 @ 19:06:39 End 2020.10.07 @ 20:04:59 Sessions 1 Manual Loads 0 Difficulty Rogue Special Mode None Game No. 173 Rogue 149 Adventurer 22 Explorer 2 Win Type - Total 1 Types 1/0/0/0/0/0/0/0/0 Lore% 50 Gallery% 54 Achievement% 44 Wizard Run 0 Options --------- ASCII 0 Keyboard 0 Movement Numpad Keybinds 0 Fullscreen 1 Font 14/SmallcapsGlow Map View 84x54 Tactical HUD 1 Map Filters NONE Filters NONE Steam 1 RUN: a4e3e997-79ba-45eb-a1d1-f8c28ad877f2